Workbook

Sheet Início
B1: ACERCA DESTE MODELO
B2: Utilize esta Análise da Rentabilidade de Clientes para registar Atividade de Clientes, Custos das Vendas e outros custos.
B3: Preencha informações como o Nome da Empresa, Data e detalhes nas tabelas.
B4: Os valores nas células com fórmulas e tabelas de Métricas de Resumo são calculados automaticamente e o Gráfico é atualizado.
B5: Nota:
B6: Estão disponíveis instruções adicionais na coluna A na folha de cálculo RENTABILIDADE DE CLIENTES. O texto está intencionalmente oculto. Para remover o texto, selecione a coluna A e, em seguida, selecione Eliminar. Para mostrar o texto, selecione a coluna A e, em seguida, mude a cor do tipo de letra.
B7: Para saber mais sobre as tabelas nesta folha de cálculo, prima Shift+F10 numa tabela, selecione a opção Tabela e, em seguida, selecione Texto Alternativo.

Sheet Rentabilidade de Clientes
A1: Crie uma Análise da Rentabilidade de Clientes nesta folha de cálculo. Existem instruções úteis sobre como utilizar esta folha de cálculo nas células desta coluna. Prima a Seta Para Baixo para começar.
A2: Introduza o Nome da Empresa na célula à direita. | B2: Nome da Empresa
A3: O título desta folha de cálculo está na célula à direita. | B3: Análise da Rentabilidade de Clientes
A4: Introduza a Data na célula à direita. | B4: Data
A5: A sugestão está na célula à direita. | B5: As células a cinzento serão calculadas automaticamente. Não precisa de introduzir dados nas mesmas.
A6: Introduza os detalhes na tabela Atividade de Clientes a partir da célula à direita. A instrução seguinte está na célula A12. | B6: Atividade de Clientes: | C6: Nome do Segmento 1 | D6: Nome do Segmento 2 | E6: Nome do Segmento 3 | F6: Global
B7: Número de clientes ativos – início do período | C7: 5 | D7: 8 | E7: 8 | F7: =SUM(C7:E7) -> 21
B8: Número de clientes adicionados | C8: 2 | D8: 4 | E8: 4 | F8: =SUM(C8:E8) -> 10
B9: Número de clientes perdidos/rescindidos | C9: -1 | D9: -2 | E9: -2 | F9: =SUM(C9:E9) -> -5
B10: Número de clientes ativos – fim do período | C10: =SUBTOTAL(109,AtividadeDeClientes[Nome do Segmento 1]) -> 6 | D10: =SUBTOTAL(109,AtividadeDeClientes[Nome do Segmento 2]) -> 10 | E10: =SUBTOTAL(109,AtividadeDeClientes[Nome do Segmento 3]) -> 10 | F10: =SUBTOTAL(109,AtividadeDeClientes[Global]) -> 26
A12: Introduza os detalhes na tabela Análise da Rentabilidade a partir da célula à direita. A instrução seguinte está na célula A16. | B12: Análise da Rentabilidade: | C12: Nome do Segmento 1 | D12: Nome do Segmento 2 | E12: Nome do Segmento 3 | F12: Global
B13: Receita por segmento | C13: 1,500,000.00 € | D13: 1,800,000.00 € | E13: 2,500,000.00 € | F13: =SUM(AnáliseDaRentabilidade[[#This Row],[Nome do Segmento 1]:[Nome do Segmento 3]]) -> 5,800,000.00 €
B14: Ponderação | C14: =+C13/$F$13 -> 26% | D14: =+D13/$F$13 -> 31% | E14: =+E13/$F$13 -> 43% | F14: =SUM(AnáliseDaRentabilidade[[#This Row],[Nome do Segmento 1]:[Nome do Segmento 3]]) -> 100%
A16: Introduza os detalhes na tabela Custo das Vendas a partir da célula à direita. A instrução seguinte está na célula A23. | B16: Custos das vendas: | C16: Nome do Segmento 1 | D16: Nome do Segmento 2 | E16: Nome do Segmento 3 | F16: Global
B17: Custos de apoio técnico e suporte contínuo | C17: 1,000,000.00 € | D17: 1,400,000.00 € | E17: 1,400,000.00 € | F17: =SUM(C17:E17) -> 3,800,000.00 €
B18: Outros custos de clientes diretos | C18: 200,000.00 € | D18: 100,000.00 € | E18: 100,000.00 € | F18: =SUM(C18:E18) -> 400,000.00 €
B19: Custo total das vendas | C19: =SUM(C17:C18) -> 1,200,000.00 € | D19: =SUM(D17:D18) -> 1,500,000.00 € | E19: =SUM(E17:E18) -> 1,500,000.00 € | F19: =SUM(F17:F18) -> 4,200,000.00 €
B20: Margem bruta | C20: =+C13-C19 -> 300,000.00 € | D20: =+D13-D19 -> 300,000.00 € | E20: =+E13-E19 -> 1,000,000.00 € | F20: =+F13-F19 -> 1,600,000.00 €
B21: Ponderação | C21: =MAX(0, MIN(1,C20/$F$20)) -> 19% | D21: =MAX(0, MIN(1,D20/$F$20)) -> 19% | E21: =MAX(0, MIN(1,E20/$F$20)) -> 63% | F21: =SUM(C21:E21) -> 100%
A23: Introduza os detalhes na tabela Outros Custos a partir da célula à direita. A instrução seguinte está na célula A31. | B23: Outros custos: | C23: Nome do Segmento 1 | D23: Nome do Segmento 2 | E23: Nome do Segmento 3 | F23: Global
B24: Aquisição de clientes | C24: 105,000.00 € | D24: 120,000.00 € | E24: 235,000.00 € | F24: =SUM(OutrosCustos[[#This Row],[Nome do Segmento 1]:[Nome do Segmento 3]]) -> 460,000.00 €
B25: Marketing para os clientes | C25: 150,000.00 € | D25: 125,000.00 € | E25: 275,000.00 € | F25: =SUM(C25:E25) -> 550,000.00 €
B26: Rescisão de clientes | C26: 80,000.00 € | D26: 190,000.00 € | E26: 140,000.00 € | F26: =SUM(C26:E26) -> 410,000.00 €
B27: Total de outros custos de clientes | C27: =SUM(C24:C26) -> 335,000.00 € | D27: =SUM(D24:D26) -> 435,000.00 € | E27: =SUM(E24:E26) -> 650,000.00 € | F27: =SUM(F24:F26) -> 1,420,000.00 €
B28: Lucro de clientes por segmento | C28: =+C20-C27 -> -35,000.00 € | D28: =+D20-D27 -> -135,000.00 € | E28: =+E20-E27 -> 350,000.00 € | F28: =SUM(C28:E28) -> 180,000.00 €
B29: Ponderação | C29: =MAX(0,MIN(1, C28/$F$28)) -> 0% | D29: =MAX(0,MIN(1, D28/$F$28)) -> 0% | E29: =MAX(0,MIN(1, E28/$F$28)) -> 100% | F29: =SUM(C29:E29) -> 100%
A31: A tabela Métricas de Resumo na célula à direita é atualizada automaticamente. A instrução seguinte está na célula A37. | B31: Métricas de Resumo: | C31: Nome do Segmento 1 | D31: Nome do Segmento 2 | E31: Nome do Segmento 3 | F31: Tendência
B32: Média do custo por cliente adquirido | C32: =+C24/C8 -> 52,500.00 € | D32: =+D24/D8 -> 30,000.00 € | E32: =+E24/E8 -> 58,750.00 €
B33: Média do custo por cliente rescindido | C33: =-C26/C9 -> 80,000.00 € | D33: =-D26/D9 -> 95,000.00 € | E33: =-E26/E9 -> 70,000.00 €
B34: Média do custo em marketing por cliente ativo | C34: =+C26/AtividadeDeClientes[[#Totals],[Nome do Segmento 1]] -> 13,333.33 € | D34: =+D25/AtividadeDeClientes[[#Totals],[Nome do Segmento 2]] -> 12,500.00 € | E34: =+E25/AtividadeDeClientes[[#Totals],[Nome do Segmento 3]] -> 27,500.00 €
B35: Média do lucro (perda) por cliente | C35: =+C29/AtividadeDeClientes[[#Totals],[Nome do Segmento 1]] -> 0.00 € | D35: =+D28/AtividadeDeClientes[[#Totals],[Nome do Segmento 2]] -> -13,500.00 € | E35: =+E28/AtividadeDeClientes[[#Totals],[Nome do Segmento 3]] -> 35,000.00 €
A37: O gráfico de colunas agrupadas a mostrar Métricas de Resumo por Segmento de Cliente está na célula à direita. | B37: O gráfico de colunas agrupadas a mostrar Métricas de Resumo por Segmento de Cliente está nesta célula.
